{"text_format":"3","workbook":"xlsx","n_sheets":3,"sheets":["Leaddaten","Prognostizierte Umsätze ","Gewichtete Monatsprognose"],"not_rendered":{"charts":1,"defined_names":10},"read":"whole","date_system":"1900"}

{"sheet":"Leaddaten","index":0,"n_rows":9,"n_cols":10,"rows_kept":9,"merged":[[3,1,3,8]]}
[null,"Firmenname"]
[null,"Detaillierter Lead-Tracker"]
[null,{"$f":"TODAY()","v":"2018-07-24"}]
[null,{"$f":"Firmenname","v":"Firmenname"},{"$nulls":7},"VERTRAULICH"]
[null,"Leadname","Leadkontakt","Lead- \nursprung","Lead- \nregion","Lead- \ntyp","Potenzielles Abschlussvolumen","Wahrscheinlichkeit eines erfoglreiches Abschlusses","Prognose- \nschluss","Gewichtete \nPrognose"]
[null,"A. Datum Corporation",{"$nulls":3},"Strategisch",{"v":300000,"d":"300,000.00 €"},{"v":0.9,"d":"90%"},"Januar",{"$f":"IFERROR(IF(LeadDaten[Wahrscheinlichkeit eines erfoglreiches Abschlusses]<>\"\",LeadDaten[Wahrscheinlichkeit eines erfoglreiches Abschlusses]*LeadDaten[Potenzielles Abschlussvolumen],\"\"),\"\")","v":{"v":270000,"d":"270,000.00 €"}}]
[null,"Adventure Works",{"$nulls":3},"Strategisch",{"v":200000,"d":"200,000.00 €"},{"v":0.1,"d":"10%"},"Februar",{"$f":"IFERROR(IF(LeadDaten[Wahrscheinlichkeit eines erfoglreiches Abschlusses]<>\"\",LeadDaten[Wahrscheinlichkeit eines erfoglreiches Abschlusses]*LeadDaten[Potenzielles Abschlussvolumen],\"\"),\"\")","v":{"v":20000,"d":"20,000.00 €"}}]
[null,"Alpine Skihütte",{"$nulls":3},"Taktisch",{"v":100000,"d":"100,000.00 €"},{"v":0.2,"d":"20%"},"März",{"$f":"IFERROR(IF(LeadDaten[Wahrscheinlichkeit eines erfoglreiches Abschlusses]<>\"\",LeadDaten[Wahrscheinlichkeit eines erfoglreiches Abschlusses]*LeadDaten[Potenzielles Abschlussvolumen],\"\"),\"\")","v":{"v":20000,"d":"20,000.00 €"}}]
[null,"Summe",{"$nulls":4},{"$f":"SUBTOTAL(109,LeadDaten[Potenzielles Abschlussvolumen])","v":{"v":600000,"d":"600,000.00 €"}},null,null,{"$f":"SUBTOTAL(109,LeadDaten[Gewichtete \nPrognose])","v":{"v":310000,"d":"310,000.00 €"}}]

{"sheet":"Prognostizierte Umsätze ","index":1,"n_rows":21,"n_cols":14,"rows_kept":21,"merged":[[3,1,3,11],[3,12,3,13]]}
[null,{"$f":"Firmenname","v":"Firmenname"}]
[null,"Prognostizierte Umsätze"]
[null,{"$f":"TrackerDatum","v":"2018-07-24"}]
[null,{"$f":"Firmenname","v":"Firmenname"},{"$nulls":10},"VERTRAULICH"]
[null,"Leadname","Januar -\nPrognose","Februar -\nPrognose","März -\nPrognose","April -\nPrognose","Mai -\nPrognose","Juni -\nPrognose","Juli -\nPrognose","August -\nPrognose","September -\nPrognose","Oktober -\nPrognose","November -\nPrognose","Dezember -\nPrognose"]
[null,{"$f":"IFERROR(IF(AND(LeadDaten[Leadname] <> \"\", ROW(PrognostizierteUmsätze[Leadname])<>LetzterEintrag),LeadDaten[Leadname], \"\"),\"\")","v":"A. Datum Corporation"},{"$f":"IFERROR(IF(LeadDaten[Prognose- \nschluss] <>\"\",IF(LeadDaten[Prognose- \nschluss]= \"Januar\",LeadDaten[Gewichtete \nPrognose],0),\"\"),\"\")","v":{"v":270000,"d":"270,000 €"}},{"$f":"IFERROR(IF(LeadDaten[Prognose- \nschluss] <>\"\",IF(LeadDaten[Prognose- \nschluss] = \"Februar\",LeadDaten[Gewichtete \nPrognose],0),\"\"),\"\")","v":{"v":0,"d":"0 €"}},{"$f":"IFERROR(IF(LeadDaten[Prognose- \nschluss] <>\"\",IF(LeadDaten[Prognose- \nschluss] = \"März\",LeadDaten[Gewichtete \nPrognose],0),\"\"),\"\")","v":{"v":0,"d":"0 €"}},{"$f":"IFERROR(IF(LeadDaten[Prognose- \nschluss] <>\"\",IF(LeadDaten[Prognose- \nschluss] = \"April\",LeadDaten[Gewichtete \nPrognose],0),\"\"),\"\")","v":{"v":0,"d":"0 €"}},{"$f":"IFERROR(IF(LeadDaten[Prognose- \nschluss] <>\"\",IF(LeadDaten[Prognose- \nschluss] = \"Mai\",LeadDaten[Gewichtete \nPrognose],0),\"\"),\"\")","v":{"v":0,"d":"0 €"}},{"$f":"IFERROR(IF(LeadDaten[Prognose- \nschluss] <>\"\",IF(LeadDaten[Prognose- \nschluss] = \"Juni\",LeadDaten[Gewichtete \nPrognose],0),\"\"),\"\")","v":{"v":0,"d":"0 €"}},{"$f":"IFERROR(IF(LeadDaten[Prognose- \nschluss] <>\"\",IF(LeadDaten[Prognose- \nschluss] = \"Juli\",LeadDaten[Gewichtete \nPrognose],0),\"\"),\"\")","v":{"v":0,"d":"0 €"}},{"$f":"IFERROR(IF(LeadDaten[Prognose- \nschluss] <>\"\",IF(LeadDaten[Prognose- \nschluss] = \"August\",LeadDaten[Gewichtete \nPrognose],0),\"\"),\"\")","v":{"v":0,"d":"0 €"}},{"$f":"IFERROR(IF(LeadDaten[Prognose- \nschluss] <>\"\",IF(LeadDaten[Prognose- \nschluss] = \"September\",LeadDaten[Gewichtete \nPrognose],0),\"\"),\"\")","v":{"v":0,"d":"0 €"}},{"$f":"IFERROR(IF(LeadDaten[Prognose- \nschluss] <>\"\",IF(LeadDaten[Prognose- \nschluss] = \"Oktober\",LeadDaten[Gewichtete \nPrognose],0),\"\"),\"\")","v":{"v":0,"d":"0 €"}},{"$f":"IFERROR(IF(LeadDaten[Prognose- \nschluss] <>\"\",IF(LeadDaten[Prognose- \nschluss] = \"November\",LeadDaten[Gewichtete \nPrognose],0),\"\"),\"\")","v":{"v":0,"d":"0 €"}},{"$f":"IFERROR(IF(LeadDaten[Prognose- \nschluss] <>\"\",IF(LeadDaten[Prognose- \nschluss] = \"Dezember\",LeadDaten[Gewichtete \nPrognose],0),\"\"),\"\")","v":{"v":0,"d":"0 €"}}]
[null,{"$f":"IFERROR(IF(AND(LeadDaten[Leadname] <> \"\", ROW(PrognostizierteUmsätze[Leadname])<>LetzterEintrag),LeadDaten[Leadname], \"\"),\"\")","v":"Adventure Works"},{"$f":"IFERROR(IF(LeadDaten[Prognose- \nschluss] <>\"\",IF(LeadDaten[Prognose- \nschluss]= \"Januar\",LeadDaten[Gewichtete \nPrognose],0),\"\"),\"\")","v":{"v":0,"d":"0 €"}},{"$f":"IFERROR(IF(LeadDaten[Prognose- \nschluss] <>\"\",IF(LeadDaten[Prognose- \nschluss] = \"Februar\",LeadDaten[Gewichtete \nPrognose],0),\"\"),\"\")","v":{"v":20000,"d":"20,000 €"}},{"$f":"IFERROR(IF(LeadDaten[Prognose- \nschluss] <>\"\",IF(LeadDaten[Prognose- \nschluss] = \"März\",LeadDaten[Gewichtete \nPrognose],0),\"\"),\"\")","v":{"v":0,"d":"0 €"}},{"$f":"IFERROR(IF(LeadDaten[Prognose- \nschluss] <>\"\",IF(LeadDaten[Prognose- \nschluss] = \"April\",LeadDaten[Gewichtete \nPrognose],0),\"\"),\"\")","v":{"v":0,"d":"0 €"}},{"$f":"IFERROR(IF(LeadDaten[Prognose- \nschluss] <>\"\",IF(LeadDaten[Prognose- \nschluss] = \"Mai\",LeadDaten[Gewichtete \nPrognose],0),\"\"),\"\")","v":{"v":0,"d":"0 €"}},{"$f":"IFERROR(IF(LeadDaten[Prognose- \nschluss] <>\"\",IF(LeadDaten[Prognose- \nschluss] = \"Juni\",LeadDaten[Gewichtete \nPrognose],0),\"\"),\"\")","v":{"v":0,"d":"0 €"}},{"$f":"IFERROR(IF(LeadDaten[Prognose- \nschluss] <>\"\",IF(LeadDaten[Prognose- \nschluss] = \"Juli\",LeadDaten[Gewichtete \nPrognose],0),\"\"),\"\")","v":{"v":0,"d":"0 €"}},{"$f":"IFERROR(IF(LeadDaten[Prognose- \nschluss] <>\"\",IF(LeadDaten[Prognose- \nschluss] = \"August\",LeadDaten[Gewichtete \nPrognose],0),\"\"),\"\")","v":{"v":0,"d":"0 €"}},{"$f":"IFERROR(IF(LeadDaten[Prognose- \nschluss] <>\"\",IF(LeadDaten[Prognose- \nschluss] = \"September\",LeadDaten[Gewichtete \nPrognose],0),\"\"),\"\")","v":{"v":0,"d":"0 €"}},{"$f":"IFERROR(IF(LeadDaten[Prognose- \nschluss] <>\"\",IF(LeadDaten[Prognose- \nschluss] = \"Oktober\",LeadDaten[Gewichtete \nPrognose],0),\"\"),\"\")","v":{"v":0,"d":"0 €"}},{"$f":"IFERROR(IF(LeadDaten[Prognose- \nschluss] <>\"\",IF(LeadDaten[Prognose- \nschluss] = \"November\",LeadDaten[Gewichtete \nPrognose],0),\"\"),\"\")","v":{"v":0,"d":"0 €"}},{"$f":"IFERROR(IF(LeadDaten[Prognose- \nschluss] <>\"\",IF(LeadDaten[Prognose- \nschluss] = \"Dezember\",LeadDaten[Gewichtete \nPrognose],0),\"\"),\"\")","v":{"v":0,"d":"0 €"}}]
[null,{"$f":"IFERROR(IF(AND(LeadDaten[Leadname] <> \"\", ROW(PrognostizierteUmsätze[Leadname])<>LetzterEintrag),LeadDaten[Leadname], \"\"),\"\")","v":"Alpine Skihütte"},{"$f":"IFERROR(IF(LeadDaten[Prognose- \nschluss] <>\"\",IF(LeadDaten[Prognose- \nschluss]= \"Januar\",LeadDaten[Gewichtete \nPrognose],0),\"\"),\"\")","v":{"v":0,"d":"0 €"}},{"$f":"IFERROR(IF(LeadDaten[Prognose- \nschluss] <>\"\",IF(LeadDaten[Prognose- \nschluss] = \"Februar\",LeadDaten[Gewichtete \nPrognose],0),\"\"),\"\")","v":{"v":0,"d":"0 €"}},{"$f":"IFERROR(IF(LeadDaten[Prognose- \nschluss] <>\"\",IF(LeadDaten[Prognose- \nschluss] = \"März\",LeadDaten[Gewichtete \nPrognose],0),\"\"),\"\")","v":{"v":20000,"d":"20,000 €"}},{"$f":"IFERROR(IF(LeadDaten[Prognose- \nschluss] <>\"\",IF(LeadDaten[Prognose- \nschluss] = \"April\",LeadDaten[Gewichtete \nPrognose],0),\"\"),\"\")","v":{"v":0,"d":"0 €"}},{"$f":"IFERROR(IF(LeadDaten[Prognose- \nschluss] <>\"\",IF(LeadDaten[Prognose- \nschluss] = \"Mai\",LeadDaten[Gewichtete \nPrognose],0),\"\"),\"\")","v":{"v":0,"d":"0 €"}},{"$f":"IFERROR(IF(LeadDaten[Prognose- \nschluss] <>\"\",IF(LeadDaten[Prognose- \nschluss] = \"Juni\",LeadDaten[Gewichtete \nPrognose],0),\"\"),\"\")","v":{"v":0,"d":"0 €"}},{"$f":"IFERROR(IF(LeadDaten[Prognose- \nschluss] <>\"\",IF(LeadDaten[Prognose- \nschluss] = \"Juli\",LeadDaten[Gewichtete \nPrognose],0),\"\"),\"\")","v":{"v":0,"d":"0 €"}},{"$f":"IFERROR(IF(LeadDaten[Prognose- \nschluss] <>\"\",IF(LeadDaten[Prognose- \nschluss] = \"August\",LeadDaten[Gewichtete \nPrognose],0),\"\"),\"\")","v":{"v":0,"d":"0 €"}},{"$f":"IFERROR(IF(LeadDaten[Prognose- \nschluss] <>\"\",IF(LeadDaten[Prognose- \nschluss] = \"September\",LeadDaten[Gewichtete \nPrognose],0),\"\"),\"\")","v":{"v":0,"d":"0 €"}},{"$f":"IFERROR(IF(LeadDaten[Prognose- \nschluss] <>\"\",IF(LeadDaten[Prognose- \nschluss] = \"Oktober\",LeadDaten[Gewichtete \nPrognose],0),\"\"),\"\")","v":{"v":0,"d":"0 €"}},{"$f":"IFERROR(IF(LeadDaten[Prognose- \nschluss] <>\"\",IF(LeadDaten[Prognose- \nschluss] = \"November\",LeadDaten[Gewichtete \nPrognose],0),\"\"),\"\")","v":{"v":0,"d":"0 €"}},{"$f":"IFERROR(IF(LeadDaten[Prognose- \nschluss] <>\"\",IF(LeadDaten[Prognose- \nschluss] = \"Dezember\",LeadDaten[Gewichtete \nPrognose],0),\"\"),\"\")","v":{"v":0,"d":"0 €"}}]
[null,{"$f":"IFERROR(IF(AND(LeadDaten[Leadname] <> \"\", ROW(PrognostizierteUmsätze[Leadname])<>LetzterEintrag),LeadDaten[Leadname], \"\"),\"\")","v":""},{"$f":"IFERROR(IF(LeadDaten[Prognose- \nschluss] <>\"\",IF(LeadDaten[Prognose- \nschluss]= \"Januar\",LeadDaten[Gewichtete \nPrognose],0),\"\"),\"\")","v":""},{"$f":"IFERROR(IF(LeadDaten[Prognose- \nschluss] <>\"\",IF(LeadDaten[Prognose- \nschluss] = \"Februar\",LeadDaten[Gewichtete \nPrognose],0),\"\"),\"\")","v":""},{"$f":"IFERROR(IF(LeadDaten[Prognose- \nschluss] <>\"\",IF(LeadDaten[Prognose- \nschluss] = \"März\",LeadDaten[Gewichtete \nPrognose],0),\"\"),\"\")","v":""},{"$f":"IFERROR(IF(LeadDaten[Prognose- \nschluss] <>\"\",IF(LeadDaten[Prognose- \nschluss] = \"April\",LeadDaten[Gewichtete \nPrognose],0),\"\"),\"\")","v":""},{"$f":"IFERROR(IF(LeadDaten[Prognose- \nschluss] <>\"\",IF(LeadDaten[Prognose- \nschluss] = \"Mai\",LeadDaten[Gewichtete \nPrognose],0),\"\"),\"\")","v":""},{"$f":"IFERROR(IF(LeadDaten[Prognose- \nschluss] <>\"\",IF(LeadDaten[Prognose- \nschluss] = \"Juni\",LeadDaten[Gewichtete \nPrognose],0),\"\"),\"\")","v":""},{"$f":"IFERROR(IF(LeadDaten[Prognose- \nschluss] <>\"\",IF(LeadDaten[Prognose- \nschluss] = \"Juli\",LeadDaten[Gewichtete \nPrognose],0),\"\"),\"\")","v":""},{"$f":"IFERROR(IF(LeadDaten[Prognose- \nschluss] <>\"\",IF(LeadDaten[Prognose- \nschluss] = \"August\",LeadDaten[Gewichtete \nPrognose],0),\"\"),\"\")","v":""},{"$f":"IFERROR(IF(LeadDaten[Prognose- \nschluss] <>\"\",IF(LeadDaten[Prognose- \nschluss] = \"September\",LeadDaten[Gewichtete \nPrognose],0),\"\"),\"\")","v":""},{"$f":"IFERROR(IF(LeadDaten[Prognose- \nschluss] <>\"\",IF(LeadDaten[Prognose- \nschluss] = \"Oktober\",LeadDaten[Gewichtete \nPrognose],0),\"\"),\"\")","v":""},{"$f":"IFERROR(IF(LeadDaten[Prognose- \nschluss] <>\"\",IF(LeadDaten[Prognose- \nschluss] = \"November\",LeadDaten[Gewichtete \nPrognose],0),\"\"),\"\")","v":""},{"$f":"IFERROR(IF(LeadDaten[Prognose- \nschluss] <>\"\",IF(LeadDaten[Prognose- \nschluss] = \"Dezember\",LeadDaten[Gewichtete \nPrognose],0),\"\"),\"\")","v":""}]
[null,{"$f":"IFERROR(IF(AND(LeadDaten[Leadname] <> \"\", ROW(PrognostizierteUmsätze[Leadname])<>LetzterEintrag),LeadDaten[Leadname], \"\"),\"\")","v":""},{"$f":"IFERROR(IF(LeadDaten[Prognose- \nschluss] <>\"\",IF(LeadDaten[Prognose- \nschluss]= \"Januar\",LeadDaten[Gewichtete \nPrognose],0),\"\"),\"\")","v":""},{"$f":"IFERROR(IF(LeadDaten[Prognose- \nschluss] <>\"\",IF(LeadDaten[Prognose- \nschluss] = \"Februar\",LeadDaten[Gewichtete \nPrognose],0),\"\"),\"\")","v":""},{"$f":"IFERROR(IF(LeadDaten[Prognose- \nschluss] <>\"\",IF(LeadDaten[Prognose- \nschluss] = \"März\",LeadDaten[Gewichtete \nPrognose],0),\"\"),\"\")","v":""},{"$f":"IFERROR(IF(LeadDaten[Prognose- \nschluss] <>\"\",IF(LeadDaten[Prognose- \nschluss] = \"April\",LeadDaten[Gewichtete \nPrognose],0),\"\"),\"\")","v":""},{"$f":"IFERROR(IF(LeadDaten[Prognose- \nschluss] <>\"\",IF(LeadDaten[Prognose- \nschluss] = \"Mai\",LeadDaten[Gewichtete \nPrognose],0),\"\"),\"\")","v":""},{"$f":"IFERROR(IF(LeadDaten[Prognose- \nschluss] <>\"\",IF(LeadDaten[Prognose- \nschluss] = \"Juni\",LeadDaten[Gewichtete \nPrognose],0),\"\"),\"\")","v":""},{"$f":"IFERROR(IF(LeadDaten[Prognose- \nschluss] <>\"\",IF(LeadDaten[Prognose- \nschluss] = \"Juli\",LeadDaten[Gewichtete \nPrognose],0),\"\"),\"\")","v":""},{"$f":"IFERROR(IF(LeadDaten[Prognose- \nschluss] <>\"\",IF(LeadDaten[Prognose- \nschluss] = \"August\",LeadDaten[Gewichtete \nPrognose],0),\"\"),\"\")","v":""},{"$f":"IFERROR(IF(LeadDaten[Prognose- \nschluss] <>\"\",IF(LeadDaten[Prognose- \nschluss] = \"September\",LeadDaten[Gewichtete \nPrognose],0),\"\"),\"\")","v":""},{"$f":"IFERROR(IF(LeadDaten[Prognose- \nschluss] <>\"\",IF(LeadDaten[Prognose- \nschluss] = \"Oktober\",LeadDaten[Gewichtete \nPrognose],0),\"\"),\"\")","v":""},{"$f":"IFERROR(IF(LeadDaten[Prognose- \nschluss] <>\"\",IF(LeadDaten[Prognose- \nschluss] = \"November\",LeadDaten[Gewichtete \nPrognose],0),\"\"),\"\")","v":""},{"$f":"IFERROR(IF(LeadDaten[Prognose- \nschluss] <>\"\",IF(LeadDaten[Prognose- \nschluss] = \"Dezember\",LeadDaten[Gewichtete \nPrognose],0),\"\"),\"\")","v":""}]
[null,{"$f":"IFERROR(IF(AND(LeadDaten[Leadname] <> \"\", ROW(PrognostizierteUmsätze[Leadname])<>LetzterEintrag),LeadDaten[Leadname], \"\"),\"\")","v":""},{"$f":"IFERROR(IF(LeadDaten[Prognose- \nschluss] <>\"\",IF(LeadDaten[Prognose- \nschluss]= \"Januar\",LeadDaten[Gewichtete \nPrognose],0),\"\"),\"\")","v":""},{"$f":"IFERROR(IF(LeadDaten[Prognose- \nschluss] <>\"\",IF(LeadDaten[Prognose- \nschluss] = \"Februar\",LeadDaten[Gewichtete \nPrognose],0),\"\"),\"\")","v":""},{"$f":"IFERROR(IF(LeadDaten[Prognose- \nschluss] <>\"\",IF(LeadDaten[Prognose- \nschluss] = \"März\",LeadDaten[Gewichtete \nPrognose],0),\"\"),\"\")","v":""},{"$f":"IFERROR(IF(LeadDaten[Prognose- \nschluss] <>\"\",IF(LeadDaten[Prognose- \nschluss] = \"April\",LeadDaten[Gewichtete \nPrognose],0),\"\"),\"\")","v":""},{"$f":"IFERROR(IF(LeadDaten[Prognose- \nschluss] <>\"\",IF(LeadDaten[Prognose- \nschluss] = \"Mai\",LeadDaten[Gewichtete \nPrognose],0),\"\"),\"\")","v":""},{"$f":"IFERROR(IF(LeadDaten[Prognose- \nschluss] <>\"\",IF(LeadDaten[Prognose- \nschluss] = \"Juni\",LeadDaten[Gewichtete \nPrognose],0),\"\"),\"\")","v":""},{"$f":"IFERROR(IF(LeadDaten[Prognose- \nschluss] <>\"\",IF(LeadDaten[Prognose- \nschluss] = \"Juli\",LeadDaten[Gewichtete \nPrognose],0),\"\"),\"\")","v":""},{"$f":"IFERROR(IF(LeadDaten[Prognose- \nschluss] <>\"\",IF(LeadDaten[Prognose- \nschluss] = \"August\",LeadDaten[Gewichtete \nPrognose],0),\"\"),\"\")","v":""},{"$f":"IFERROR(IF(LeadDaten[Prognose- \nschluss] <>\"\",IF(LeadDaten[Prognose- \nschluss] = \"September\",LeadDaten[Gewichtete \nPrognose],0),\"\"),\"\")","v":""},{"$f":"IFERROR(IF(LeadDaten[Prognose- \nschluss] <>\"\",IF(LeadDaten[Prognose- \nschluss] = \"Oktober\",LeadDaten[Gewichtete \nPrognose],0),\"\"),\"\")","v":""},{"$f":"IFERROR(IF(LeadDaten[Prognose- \nschluss] <>\"\",IF(LeadDaten[Prognose- \nschluss] = \"November\",LeadDaten[Gewichtete \nPrognose],0),\"\"),\"\")","v":""},{"$f":"IFERROR(IF(LeadDaten[Prognose- \nschluss] <>\"\",IF(LeadDaten[Prognose- \nschluss] = \"Dezember\",LeadDaten[Gewichtete \nPrognose],0),\"\"),\"\")","v":""}]
[null,{"$f":"IFERROR(IF(AND(LeadDaten[Leadname] <> \"\", ROW(PrognostizierteUmsätze[Leadname])<>LetzterEintrag),LeadDaten[Leadname], \"\"),\"\")","v":""},{"$f":"IFERROR(IF(LeadDaten[Prognose- \nschluss] <>\"\",IF(LeadDaten[Prognose- \nschluss]= \"Januar\",LeadDaten[Gewichtete \nPrognose],0),\"\"),\"\")","v":""},{"$f":"IFERROR(IF(LeadDaten[Prognose- \nschluss] <>\"\",IF(LeadDaten[Prognose- \nschluss] = \"Februar\",LeadDaten[Gewichtete \nPrognose],0),\"\"),\"\")","v":""},{"$f":"IFERROR(IF(LeadDaten[Prognose- \nschluss] <>\"\",IF(LeadDaten[Prognose- \nschluss] = \"März\",LeadDaten[Gewichtete \nPrognose],0),\"\"),\"\")","v":""},{"$f":"IFERROR(IF(LeadDaten[Prognose- \nschluss] <>\"\",IF(LeadDaten[Prognose- \nschluss] = \"April\",LeadDaten[Gewichtete \nPrognose],0),\"\"),\"\")","v":""},{"$f":"IFERROR(IF(LeadDaten[Prognose- \nschluss] <>\"\",IF(LeadDaten[Prognose- \nschluss] = \"Mai\",LeadDaten[Gewichtete \nPrognose],0),\"\"),\"\")","v":""},{"$f":"IFERROR(IF(LeadDaten[Prognose- \nschluss] <>\"\",IF(LeadDaten[Prognose- \nschluss] = \"Juni\",LeadDaten[Gewichtete \nPrognose],0),\"\"),\"\")","v":""},{"$f":"IFERROR(IF(LeadDaten[Prognose- \nschluss] <>\"\",IF(LeadDaten[Prognose- \nschluss] = \"Juli\",LeadDaten[Gewichtete \nPrognose],0),\"\"),\"\")","v":""},{"$f":"IFERROR(IF(LeadDaten[Prognose- \nschluss] <>\"\",IF(LeadDaten[Prognose- \nschluss] = \"August\",LeadDaten[Gewichtete \nPrognose],0),\"\"),\"\")","v":""},{"$f":"IFERROR(IF(LeadDaten[Prognose- \nschluss] <>\"\",IF(LeadDaten[Prognose- \nschluss] = \"September\",LeadDaten[Gewichtete \nPrognose],0),\"\"),\"\")","v":""},{"$f":"IFERROR(IF(LeadDaten[Prognose- \nschluss] <>\"\",IF(LeadDaten[Prognose- \nschluss] = \"Oktober\",LeadDaten[Gewichtete \nPrognose],0),\"\"),\"\")","v":""},{"$f":"IFERROR(IF(LeadDaten[Prognose- \nschluss] <>\"\",IF(LeadDaten[Prognose- \nschluss] = \"November\",LeadDaten[Gewichtete \nPrognose],0),\"\"),\"\")","v":""},{"$f":"IFERROR(IF(LeadDaten[Prognose- \nschluss] <>\"\",IF(LeadDaten[Prognose- \nschluss] = \"Dezember\",LeadDaten[Gewichtete \nPrognose],0),\"\"),\"\")","v":""}]
[null,{"$f":"IFERROR(IF(AND(LeadDaten[Leadname] <> \"\", ROW(PrognostizierteUmsätze[Leadname])<>LetzterEintrag),LeadDaten[Leadname], \"\"),\"\")","v":""},{"$f":"IFERROR(IF(LeadDaten[Prognose- \nschluss] <>\"\",IF(LeadDaten[Prognose- \nschluss]= \"Januar\",LeadDaten[Gewichtete \nPrognose],0),\"\"),\"\")","v":""},{"$f":"IFERROR(IF(LeadDaten[Prognose- \nschluss] <>\"\",IF(LeadDaten[Prognose- \nschluss] = \"Februar\",LeadDaten[Gewichtete \nPrognose],0),\"\"),\"\")","v":""},{"$f":"IFERROR(IF(LeadDaten[Prognose- \nschluss] <>\"\",IF(LeadDaten[Prognose- \nschluss] = \"März\",LeadDaten[Gewichtete \nPrognose],0),\"\"),\"\")","v":""},{"$f":"IFERROR(IF(LeadDaten[Prognose- \nschluss] <>\"\",IF(LeadDaten[Prognose- \nschluss] = \"April\",LeadDaten[Gewichtete \nPrognose],0),\"\"),\"\")","v":""},{"$f":"IFERROR(IF(LeadDaten[Prognose- \nschluss] <>\"\",IF(LeadDaten[Prognose- \nschluss] = \"Mai\",LeadDaten[Gewichtete \nPrognose],0),\"\"),\"\")","v":""},{"$f":"IFERROR(IF(LeadDaten[Prognose- \nschluss] <>\"\",IF(LeadDaten[Prognose- \nschluss] = \"Juni\",LeadDaten[Gewichtete \nPrognose],0),\"\"),\"\")","v":""},{"$f":"IFERROR(IF(LeadDaten[Prognose- \nschluss] <>\"\",IF(LeadDaten[Prognose- \nschluss] = \"Juli\",LeadDaten[Gewichtete \nPrognose],0),\"\"),\"\")","v":""},{"$f":"IFERROR(IF(LeadDaten[Prognose- \nschluss] <>\"\",IF(LeadDaten[Prognose- \nschluss] = \"August\",LeadDaten[Gewichtete \nPrognose],0),\"\"),\"\")","v":""},{"$f":"IFERROR(IF(LeadDaten[Prognose- \nschluss] <>\"\",IF(LeadDaten[Prognose- \nschluss] = \"September\",LeadDaten[Gewichtete \nPrognose],0),\"\"),\"\")","v":""},{"$f":"IFERROR(IF(LeadDaten[Prognose- \nschluss] <>\"\",IF(LeadDaten[Prognose- \nschluss] = \"Oktober\",LeadDaten[Gewichtete \nPrognose],0),\"\"),\"\")","v":""},{"$f":"IFERROR(IF(LeadDaten[Prognose- \nschluss] <>\"\",IF(LeadDaten[Prognose- \nschluss] = \"November\",LeadDaten[Gewichtete \nPrognose],0),\"\"),\"\")","v":""},{"$f":"IFERROR(IF(LeadDaten[Prognose- \nschluss] <>\"\",IF(LeadDaten[Prognose- \nschluss] = \"Dezember\",LeadDaten[Gewichtete \nPrognose],0),\"\"),\"\")","v":""}]
[null,{"$f":"IFERROR(IF(AND(LeadDaten[Leadname] <> \"\", ROW(PrognostizierteUmsätze[Leadname])<>LetzterEintrag),LeadDaten[Leadname], \"\"),\"\")","v":""},{"$f":"IFERROR(IF(LeadDaten[Prognose- \nschluss] <>\"\",IF(LeadDaten[Prognose- \nschluss]= \"Januar\",LeadDaten[Gewichtete \nPrognose],0),\"\"),\"\")","v":""},{"$f":"IFERROR(IF(LeadDaten[Prognose- \nschluss] <>\"\",IF(LeadDaten[Prognose- \nschluss] = \"Februar\",LeadDaten[Gewichtete \nPrognose],0),\"\"),\"\")","v":""},{"$f":"IFERROR(IF(LeadDaten[Prognose- \nschluss] <>\"\",IF(LeadDaten[Prognose- \nschluss] = \"März\",LeadDaten[Gewichtete \nPrognose],0),\"\"),\"\")","v":""},{"$f":"IFERROR(IF(LeadDaten[Prognose- \nschluss] <>\"\",IF(LeadDaten[Prognose- \nschluss] = \"April\",LeadDaten[Gewichtete \nPrognose],0),\"\"),\"\")","v":""},{"$f":"IFERROR(IF(LeadDaten[Prognose- \nschluss] <>\"\",IF(LeadDaten[Prognose- \nschluss] = \"Mai\",LeadDaten[Gewichtete \nPrognose],0),\"\"),\"\")","v":""},{"$f":"IFERROR(IF(LeadDaten[Prognose- \nschluss] <>\"\",IF(LeadDaten[Prognose- \nschluss] = \"Juni\",LeadDaten[Gewichtete \nPrognose],0),\"\"),\"\")","v":""},{"$f":"IFERROR(IF(LeadDaten[Prognose- \nschluss] <>\"\",IF(LeadDaten[Prognose- \nschluss] = \"Juli\",LeadDaten[Gewichtete \nPrognose],0),\"\"),\"\")","v":""},{"$f":"IFERROR(IF(LeadDaten[Prognose- \nschluss] <>\"\",IF(LeadDaten[Prognose- \nschluss] = \"August\",LeadDaten[Gewichtete \nPrognose],0),\"\"),\"\")","v":""},{"$f":"IFERROR(IF(LeadDaten[Prognose- \nschluss] <>\"\",IF(LeadDaten[Prognose- \nschluss] = \"September\",LeadDaten[Gewichtete \nPrognose],0),\"\"),\"\")","v":""},{"$f":"IFERROR(IF(LeadDaten[Prognose- \nschluss] <>\"\",IF(LeadDaten[Prognose- \nschluss] = \"Oktober\",LeadDaten[Gewichtete \nPrognose],0),\"\"),\"\")","v":""},{"$f":"IFERROR(IF(LeadDaten[Prognose- \nschluss] <>\"\",IF(LeadDaten[Prognose- \nschluss] = \"November\",LeadDaten[Gewichtete \nPrognose],0),\"\"),\"\")","v":""},{"$f":"IFERROR(IF(LeadDaten[Prognose- \nschluss] <>\"\",IF(LeadDaten[Prognose- \nschluss] = \"Dezember\",LeadDaten[Gewichtete \nPrognose],0),\"\"),\"\")","v":""}]
[null,{"$f":"IFERROR(IF(AND(LeadDaten[Leadname] <> \"\", ROW(PrognostizierteUmsätze[Leadname])<>LetzterEintrag),LeadDaten[Leadname], \"\"),\"\")","v":""},{"$f":"IFERROR(IF(LeadDaten[Prognose- \nschluss] <>\"\",IF(LeadDaten[Prognose- \nschluss]= \"Januar\",LeadDaten[Gewichtete \nPrognose],0),\"\"),\"\")","v":""},{"$f":"IFERROR(IF(LeadDaten[Prognose- \nschluss] <>\"\",IF(LeadDaten[Prognose- \nschluss] = \"Februar\",LeadDaten[Gewichtete \nPrognose],0),\"\"),\"\")","v":""},{"$f":"IFERROR(IF(LeadDaten[Prognose- \nschluss] <>\"\",IF(LeadDaten[Prognose- \nschluss] = \"März\",LeadDaten[Gewichtete \nPrognose],0),\"\"),\"\")","v":""},{"$f":"IFERROR(IF(LeadDaten[Prognose- \nschluss] <>\"\",IF(LeadDaten[Prognose- \nschluss] = \"April\",LeadDaten[Gewichtete \nPrognose],0),\"\"),\"\")","v":""},{"$f":"IFERROR(IF(LeadDaten[Prognose- \nschluss] <>\"\",IF(LeadDaten[Prognose- \nschluss] = \"Mai\",LeadDaten[Gewichtete \nPrognose],0),\"\"),\"\")","v":""},{"$f":"IFERROR(IF(LeadDaten[Prognose- \nschluss] <>\"\",IF(LeadDaten[Prognose- \nschluss] = \"Juni\",LeadDaten[Gewichtete \nPrognose],0),\"\"),\"\")","v":""},{"$f":"IFERROR(IF(LeadDaten[Prognose- \nschluss] <>\"\",IF(LeadDaten[Prognose- \nschluss] = \"Juli\",LeadDaten[Gewichtete \nPrognose],0),\"\"),\"\")","v":""},{"$f":"IFERROR(IF(LeadDaten[Prognose- \nschluss] <>\"\",IF(LeadDaten[Prognose- \nschluss] = \"August\",LeadDaten[Gewichtete \nPrognose],0),\"\"),\"\")","v":""},{"$f":"IFERROR(IF(LeadDaten[Prognose- \nschluss] <>\"\",IF(LeadDaten[Prognose- \nschluss] = \"September\",LeadDaten[Gewichtete \nPrognose],0),\"\"),\"\")","v":""},{"$f":"IFERROR(IF(LeadDaten[Prognose- \nschluss] <>\"\",IF(LeadDaten[Prognose- \nschluss] = \"Oktober\",LeadDaten[Gewichtete \nPrognose],0),\"\"),\"\")","v":""},{"$f":"IFERROR(IF(LeadDaten[Prognose- \nschluss] <>\"\",IF(LeadDaten[Prognose- \nschluss] = \"November\",LeadDaten[Gewichtete \nPrognose],0),\"\"),\"\")","v":""},{"$f":"IFERROR(IF(LeadDaten[Prognose- \nschluss] <>\"\",IF(LeadDaten[Prognose- \nschluss] = \"Dezember\",LeadDaten[Gewichtete \nPrognose],0),\"\"),\"\")","v":""}]
[null,{"$f":"IFERROR(IF(AND(LeadDaten[Leadname] <> \"\", ROW(PrognostizierteUmsätze[Leadname])<>LetzterEintrag),LeadDaten[Leadname], \"\"),\"\")","v":""},{"$f":"IFERROR(IF(LeadDaten[Prognose- \nschluss] <>\"\",IF(LeadDaten[Prognose- \nschluss]= \"Januar\",LeadDaten[Gewichtete \nPrognose],0),\"\"),\"\")","v":""},{"$f":"IFERROR(IF(LeadDaten[Prognose- \nschluss] <>\"\",IF(LeadDaten[Prognose- \nschluss] = \"Februar\",LeadDaten[Gewichtete \nPrognose],0),\"\"),\"\")","v":""},{"$f":"IFERROR(IF(LeadDaten[Prognose- \nschluss] <>\"\",IF(LeadDaten[Prognose- \nschluss] = \"März\",LeadDaten[Gewichtete \nPrognose],0),\"\"),\"\")","v":""},{"$f":"IFERROR(IF(LeadDaten[Prognose- \nschluss] <>\"\",IF(LeadDaten[Prognose- \nschluss] = \"April\",LeadDaten[Gewichtete \nPrognose],0),\"\"),\"\")","v":""},{"$f":"IFERROR(IF(LeadDaten[Prognose- \nschluss] <>\"\",IF(LeadDaten[Prognose- \nschluss] = \"Mai\",LeadDaten[Gewichtete \nPrognose],0),\"\"),\"\")","v":""},{"$f":"IFERROR(IF(LeadDaten[Prognose- \nschluss] <>\"\",IF(LeadDaten[Prognose- \nschluss] = \"Juni\",LeadDaten[Gewichtete \nPrognose],0),\"\"),\"\")","v":""},{"$f":"IFERROR(IF(LeadDaten[Prognose- \nschluss] <>\"\",IF(LeadDaten[Prognose- \nschluss] = \"Juli\",LeadDaten[Gewichtete \nPrognose],0),\"\"),\"\")","v":""},{"$f":"IFERROR(IF(LeadDaten[Prognose- \nschluss] <>\"\",IF(LeadDaten[Prognose- \nschluss] = \"August\",LeadDaten[Gewichtete \nPrognose],0),\"\"),\"\")","v":""},{"$f":"IFERROR(IF(LeadDaten[Prognose- \nschluss] <>\"\",IF(LeadDaten[Prognose- \nschluss] = \"September\",LeadDaten[Gewichtete \nPrognose],0),\"\"),\"\")","v":""},{"$f":"IFERROR(IF(LeadDaten[Prognose- \nschluss] <>\"\",IF(LeadDaten[Prognose- \nschluss] = \"Oktober\",LeadDaten[Gewichtete \nPrognose],0),\"\"),\"\")","v":""},{"$f":"IFERROR(IF(LeadDaten[Prognose- \nschluss] <>\"\",IF(LeadDaten[Prognose- \nschluss] = \"November\",LeadDaten[Gewichtete \nPrognose],0),\"\"),\"\")","v":""},{"$f":"IFERROR(IF(LeadDaten[Prognose- \nschluss] <>\"\",IF(LeadDaten[Prognose- \nschluss] = \"Dezember\",LeadDaten[Gewichtete \nPrognose],0),\"\"),\"\")","v":""}]
[null,{"$f":"IFERROR(IF(AND(LeadDaten[Leadname] <> \"\", ROW(PrognostizierteUmsätze[Leadname])<>LetzterEintrag),LeadDaten[Leadname], \"\"),\"\")","v":""},{"$f":"IFERROR(IF(LeadDaten[Prognose- \nschluss] <>\"\",IF(LeadDaten[Prognose- \nschluss]= \"Januar\",LeadDaten[Gewichtete \nPrognose],0),\"\"),\"\")","v":""},{"$f":"IFERROR(IF(LeadDaten[Prognose- \nschluss] <>\"\",IF(LeadDaten[Prognose- \nschluss] = \"Februar\",LeadDaten[Gewichtete \nPrognose],0),\"\"),\"\")","v":""},{"$f":"IFERROR(IF(LeadDaten[Prognose- \nschluss] <>\"\",IF(LeadDaten[Prognose- \nschluss] = \"März\",LeadDaten[Gewichtete \nPrognose],0),\"\"),\"\")","v":""},{"$f":"IFERROR(IF(LeadDaten[Prognose- \nschluss] <>\"\",IF(LeadDaten[Prognose- \nschluss] = \"April\",LeadDaten[Gewichtete \nPrognose],0),\"\"),\"\")","v":""},{"$f":"IFERROR(IF(LeadDaten[Prognose- \nschluss] <>\"\",IF(LeadDaten[Prognose- \nschluss] = \"Mai\",LeadDaten[Gewichtete \nPrognose],0),\"\"),\"\")","v":""},{"$f":"IFERROR(IF(LeadDaten[Prognose- \nschluss] <>\"\",IF(LeadDaten[Prognose- \nschluss] = \"Juni\",LeadDaten[Gewichtete \nPrognose],0),\"\"),\"\")","v":""},{"$f":"IFERROR(IF(LeadDaten[Prognose- \nschluss] <>\"\",IF(LeadDaten[Prognose- \nschluss] = \"Juli\",LeadDaten[Gewichtete \nPrognose],0),\"\"),\"\")","v":""},{"$f":"IFERROR(IF(LeadDaten[Prognose- \nschluss] <>\"\",IF(LeadDaten[Prognose- \nschluss] = \"August\",LeadDaten[Gewichtete \nPrognose],0),\"\"),\"\")","v":""},{"$f":"IFERROR(IF(LeadDaten[Prognose- \nschluss] <>\"\",IF(LeadDaten[Prognose- \nschluss] = \"September\",LeadDaten[Gewichtete \nPrognose],0),\"\"),\"\")","v":""},{"$f":"IFERROR(IF(LeadDaten[Prognose- \nschluss] <>\"\",IF(LeadDaten[Prognose- \nschluss] = \"Oktober\",LeadDaten[Gewichtete \nPrognose],0),\"\"),\"\")","v":""},{"$f":"IFERROR(IF(LeadDaten[Prognose- \nschluss] <>\"\",IF(LeadDaten[Prognose- \nschluss] = \"November\",LeadDaten[Gewichtete \nPrognose],0),\"\"),\"\")","v":""},{"$f":"IFERROR(IF(LeadDaten[Prognose- \nschluss] <>\"\",IF(LeadDaten[Prognose- \nschluss] = \"Dezember\",LeadDaten[Gewichtete \nPrognose],0),\"\"),\"\")","v":""}]
[null,{"$f":"IFERROR(IF(AND(LeadDaten[Leadname] <> \"\", ROW(PrognostizierteUmsätze[Leadname])<>LetzterEintrag),LeadDaten[Leadname], \"\"),\"\")","v":""},{"$f":"IFERROR(IF(LeadDaten[Prognose- \nschluss] <>\"\",IF(LeadDaten[Prognose- \nschluss]= \"Januar\",LeadDaten[Gewichtete \nPrognose],0),\"\"),\"\")","v":""},{"$f":"IFERROR(IF(LeadDaten[Prognose- \nschluss] <>\"\",IF(LeadDaten[Prognose- \nschluss] = \"Februar\",LeadDaten[Gewichtete \nPrognose],0),\"\"),\"\")","v":""},{"$f":"IFERROR(IF(LeadDaten[Prognose- \nschluss] <>\"\",IF(LeadDaten[Prognose- \nschluss] = \"März\",LeadDaten[Gewichtete \nPrognose],0),\"\"),\"\")","v":""},{"$f":"IFERROR(IF(LeadDaten[Prognose- \nschluss] <>\"\",IF(LeadDaten[Prognose- \nschluss] = \"April\",LeadDaten[Gewichtete \nPrognose],0),\"\"),\"\")","v":""},{"$f":"IFERROR(IF(LeadDaten[Prognose- \nschluss] <>\"\",IF(LeadDaten[Prognose- \nschluss] = \"Mai\",LeadDaten[Gewichtete \nPrognose],0),\"\"),\"\")","v":""},{"$f":"IFERROR(IF(LeadDaten[Prognose- \nschluss] <>\"\",IF(LeadDaten[Prognose- \nschluss] = \"Juni\",LeadDaten[Gewichtete \nPrognose],0),\"\"),\"\")","v":""},{"$f":"IFERROR(IF(LeadDaten[Prognose- \nschluss] <>\"\",IF(LeadDaten[Prognose- \nschluss] = \"Juli\",LeadDaten[Gewichtete \nPrognose],0),\"\"),\"\")","v":""},{"$f":"IFERROR(IF(LeadDaten[Prognose- \nschluss] <>\"\",IF(LeadDaten[Prognose- \nschluss] = \"August\",LeadDaten[Gewichtete \nPrognose],0),\"\"),\"\")","v":""},{"$f":"IFERROR(IF(LeadDaten[Prognose- \nschluss] <>\"\",IF(LeadDaten[Prognose- \nschluss] = \"September\",LeadDaten[Gewichtete \nPrognose],0),\"\"),\"\")","v":""},{"$f":"IFERROR(IF(LeadDaten[Prognose- \nschluss] <>\"\",IF(LeadDaten[Prognose- \nschluss] = \"Oktober\",LeadDaten[Gewichtete \nPrognose],0),\"\"),\"\")","v":""},{"$f":"IFERROR(IF(LeadDaten[Prognose- \nschluss] <>\"\",IF(LeadDaten[Prognose- \nschluss] = \"November\",LeadDaten[Gewichtete \nPrognose],0),\"\"),\"\")","v":""},{"$f":"IFERROR(IF(LeadDaten[Prognose- \nschluss] <>\"\",IF(LeadDaten[Prognose- \nschluss] = \"Dezember\",LeadDaten[Gewichtete \nPrognose],0),\"\"),\"\")","v":""}]
[null,{"$f":"IFERROR(IF(AND(LeadDaten[Leadname] <> \"\", ROW(PrognostizierteUmsätze[Leadname])<>LetzterEintrag),LeadDaten[Leadname], \"\"),\"\")","v":""},{"$f":"IFERROR(IF(LeadDaten[Prognose- \nschluss] <>\"\",IF(LeadDaten[Prognose- \nschluss]= \"Januar\",LeadDaten[Gewichtete \nPrognose],0),\"\"),\"\")","v":""},{"$f":"IFERROR(IF(LeadDaten[Prognose- \nschluss] <>\"\",IF(LeadDaten[Prognose- \nschluss] = \"Februar\",LeadDaten[Gewichtete \nPrognose],0),\"\"),\"\")","v":""},{"$f":"IFERROR(IF(LeadDaten[Prognose- \nschluss] <>\"\",IF(LeadDaten[Prognose- \nschluss] = \"März\",LeadDaten[Gewichtete \nPrognose],0),\"\"),\"\")","v":""},{"$f":"IFERROR(IF(LeadDaten[Prognose- \nschluss] <>\"\",IF(LeadDaten[Prognose- \nschluss] = \"April\",LeadDaten[Gewichtete \nPrognose],0),\"\"),\"\")","v":""},{"$f":"IFERROR(IF(LeadDaten[Prognose- \nschluss] <>\"\",IF(LeadDaten[Prognose- \nschluss] = \"Mai\",LeadDaten[Gewichtete \nPrognose],0),\"\"),\"\")","v":""},{"$f":"IFERROR(IF(LeadDaten[Prognose- \nschluss] <>\"\",IF(LeadDaten[Prognose- \nschluss] = \"Juni\",LeadDaten[Gewichtete \nPrognose],0),\"\"),\"\")","v":""},{"$f":"IFERROR(IF(LeadDaten[Prognose- \nschluss] <>\"\",IF(LeadDaten[Prognose- \nschluss] = \"Juli\",LeadDaten[Gewichtete \nPrognose],0),\"\"),\"\")","v":""},{"$f":"IFERROR(IF(LeadDaten[Prognose- \nschluss] <>\"\",IF(LeadDaten[Prognose- \nschluss] = \"August\",LeadDaten[Gewichtete \nPrognose],0),\"\"),\"\")","v":""},{"$f":"IFERROR(IF(LeadDaten[Prognose- \nschluss] <>\"\",IF(LeadDaten[Prognose- \nschluss] = \"September\",LeadDaten[Gewichtete \nPrognose],0),\"\"),\"\")","v":""},{"$f":"IFERROR(IF(LeadDaten[Prognose- \nschluss] <>\"\",IF(LeadDaten[Prognose- \nschluss] = \"Oktober\",LeadDaten[Gewichtete \nPrognose],0),\"\"),\"\")","v":""},{"$f":"IFERROR(IF(LeadDaten[Prognose- \nschluss] <>\"\",IF(LeadDaten[Prognose- \nschluss] = \"November\",LeadDaten[Gewichtete \nPrognose],0),\"\"),\"\")","v":""},{"$f":"IFERROR(IF(LeadDaten[Prognose- \nschluss] <>\"\",IF(LeadDaten[Prognose- \nschluss] = \"Dezember\",LeadDaten[Gewichtete \nPrognose],0),\"\"),\"\")","v":""}]
[null,"Summe",{"$f":"SUBTOTAL(109,PrognostizierteUmsätze[Januar -\nPrognose])","v":{"v":270000,"d":"270,000 €"}},{"$f":"SUBTOTAL(109,PrognostizierteUmsätze[Februar -\nPrognose])","v":{"v":20000,"d":"20,000 €"}},{"$f":"SUBTOTAL(109,PrognostizierteUmsätze[März -\nPrognose])","v":{"v":20000,"d":"20,000 €"}},{"$f":"SUBTOTAL(109,PrognostizierteUmsätze[April -\nPrognose])","v":{"v":0,"d":"0 €"}},{"$f":"SUBTOTAL(109,PrognostizierteUmsätze[Mai -\nPrognose])","v":{"v":0,"d":"0 €"}},{"$f":"SUBTOTAL(109,PrognostizierteUmsätze[Juni -\nPrognose])","v":{"v":0,"d":"0 €"}},{"$f":"SUBTOTAL(109,PrognostizierteUmsätze[Juli -\nPrognose])","v":{"v":0,"d":"0 €"}},{"$f":"SUBTOTAL(109,PrognostizierteUmsätze[August -\nPrognose])","v":{"v":0,"d":"0 €"}},{"$f":"SUBTOTAL(109,PrognostizierteUmsätze[September -\nPrognose])","v":{"v":0,"d":"0 €"}},{"$f":"SUBTOTAL(109,PrognostizierteUmsätze[Oktober -\nPrognose])","v":{"v":0,"d":"0 €"}},{"$f":"SUBTOTAL(109,PrognostizierteUmsätze[November -\nPrognose])","v":{"v":0,"d":"0 €"}},{"$f":"SUBTOTAL(109,PrognostizierteUmsätze[Dezember -\nPrognose])","v":{"v":0,"d":"0 €"}}]
[null,"Kumulierte Summe",{"$f":"C20","v":{"v":270000,"d":"270,000 €"}},{"$f":"C21+D20","v":{"v":290000,"d":"290,000 €"}},{"$f":"D21+E20","v":{"v":310000,"d":"310,000 €"}},{"$f":"E21+F20","v":{"v":310000,"d":"310,000 €"}},{"$f":"F21+G20","v":{"v":310000,"d":"310,000 €"}},{"$f":"G21+H20","v":{"v":310000,"d":"310,000 €"}},{"$f":"H21+I20","v":{"v":310000,"d":"310,000 €"}},{"$f":"I21+J20","v":{"v":310000,"d":"310,000 €"}},{"$f":"J21+K20","v":{"v":310000,"d":"310,000 €"}},{"$f":"K21+L20","v":{"v":310000,"d":"310,000 €"}},{"$f":"L21+M20","v":{"v":310000,"d":"310,000 €"}},{"$f":"M21+N20","v":{"v":310000,"d":"310,000 €"}}]

{"sheet":"Gewichtete Monatsprognose","index":2,"n_rows":3,"n_cols":2,"rows_kept":3}
[null,{"$f":"Firmenname","v":"Firmenname"}]
[null,"Gewichtete Monatsprognose"]
[null," "]